[Event "18èmeFestival International d’Echecsde Rochefort"]
[Site "Rochefort, France"]
[Date "2019.02.19"]
[Round "6.5"]
[White "LUCAS, Arthur"]
[Black "SOSA, Tomas"]
[Result "0-1"]
[TimeControl "1h30 min/40coups + 30 min +  30sec/coup"]
[BlackTitle "IM"]
[WhiteFideId "26093073"]
[BlackFideId "121576"]
[WhiteElo "2178"]
[BlackElo "2502"]

1. e4 {[%clk 01:30:57]} {[%emt 00:00:02]} c5 {[%clk 01:24:58]} {[%emt
00:05:50]} 2. Nf3 {[%clk 01:31:23]} {[%emt 00:00:15]} Nc6 {[%clk 01:25:09]}
{[%emt 00:00:20]} 3. d4 {[%clk 01:31:47]} {[%emt 00:00:06]} cxd4 {[%clk
01:25:34]} {[%emt 00:00:05]} 4. Nxd4 {[%clk 01:32:13]} {[%emt 00:00:05]} Nf6
{[%clk 01:25:33]} {[%emt 00:00:29]} 5. Nc3 {[%clk 01:32:38]} {[%emt 00:00:07]}
d6 {[%clk 01:25:59]} {[%emt 00:00:04]} 6. g3 {[%clk 01:32:43]} {[%emt
00:00:25]} Bd7 {[%clk 01:19:07]} {[%emt 00:07:21]} 7. Bg2 {[%clk 01:30:05]}
{[%emt 00:03:08]} g6 {[%clk 01:19:24]} {[%emt 00:00:13]} 8. Nde2 {[%clk
01:24:53]} {[%emt 00:05:42]} Bg7 {[%clk 01:19:24]} {[%emt 00:00:30]} 9. O-O
{[%clk 01:25:16]} {[%emt 00:00:08]} O-O {[%clk 01:19:04]} {[%emt 00:00:50]} 10.
Nd5 {[%clk 01:14:47]} {[%emt 00:10:59]} Rc8 {[%clk 01:16:04]} {[%emt 00:03:30]}
11. c3 {[%clk 01:09:26]} {[%emt 00:05:51]} Ne5 {[%clk 01:12:33]} {[%emt
00:04:00]} 12. Nd4 {[%clk 01:02:48]} {[%emt 00:07:08]} b5 {[%clk 01:10:48]}
{[%emt 00:02:15]} 13. Bg5 {[%clk 00:55:32]} {[%emt 00:07:46]} Nxd5 {[%clk
00:52:59]} {[%emt 00:18:18]} 14. exd5 {[%clk 00:55:57]} {[%emt 00:00:06]} Re8
{[%clk 00:52:06]} {[%emt 00:01:22]} 15. Qe2 {[%clk 00:38:10]} {[%emt 00:18:18]}
Qb6 {[%clk 00:46:05]} {[%emt 00:06:31]} 16. a3 {[%clk 00:33:41]} {[%emt
00:04:59]} a5 {[%clk 00:45:59]} {[%emt 00:00:35]} 17. Be3 {[%clk 00:24:02]}
{[%emt 00:10:10]} Nc4 {[%clk 00:39:28]} {[%emt 00:06:59]} 18. Nf5 {[%clk
00:16:14]} {[%emt 00:08:19]} Nxe3 {[%clk 00:39:33]} {[%emt 00:00:25]} 19. Qxe3
{[%clk 00:15:52]} {[%emt 00:00:52]} Qxe3 {[%clk 00:39:34]} {[%emt 00:00:29]} 20.
Nxe3 {[%clk 00:16:20]} {[%emt 00:00:02]} Rc7 {[%clk 00:36:31]} {[%emt
00:03:33]} 21. Rfe1 {[%clk 00:15:40]} {[%emt 00:01:11]} Rb8 {[%clk 00:29:28]}
{[%emt 00:07:33]} 22. Nc2 {[%clk 00:13:15]} {[%emt 00:02:54]} Kf8 {[%clk
00:28:50]} {[%emt 00:01:08]} 23. h4 {[%clk 00:09:59]} {[%emt 00:03:46]} Rc4
{[%clk 00:28:24]} {[%emt 00:00:56]} 24. Ne3 {[%clk 00:09:06]} {[%emt 00:01:24]}
Rc5 {[%clk 00:28:31]} {[%emt 00:00:22]} 25. Nc2 {[%clk 00:09:15]} {[%emt
00:00:21]} Bf5 {[%clk 00:28:02]} {[%emt 00:00:59]} 26. Ne3 {[%clk 00:09:12]}
{[%emt 00:00:33]} Bd3 {[%clk 00:24:15]} {[%emt 00:04:17]} 27. Rad1 {[%clk
00:07:57]} {[%emt 00:01:46]} Bc4 {[%clk 00:24:37]} {[%emt 00:00:09]} 28. Rd2
{[%clk 00:04:03]} {[%emt 00:04:24]} Bb3 {[%clk 00:24:06]} {[%emt 00:01:00]} 29.
Ra1 {[%clk 00:00:35]} {[%emt 00:03:59]} Rcc8 {[%clk 00:22:14]} {[%emt
00:02:22]} 30. Bh3 {[%clk 00:00:34]} {[%emt 00:00:31]} f5 {[%clk 00:22:11]}
{[%emt 00:00:33]} 31. Bf1 {[%clk 00:00:36]} {[%emt 00:00:27]} Kf7 {[%clk
00:14:42]} {[%emt 00:07:58]} 32. Be2 {[%clk 00:00:36]} {[%emt 00:00:31]} b4
{[%clk 00:13:39]} {[%emt 00:01:33]} 33. axb4 {[%clk 00:01:02]} {[%emt
00:00:03]} axb4 {[%clk 00:14:03]} {[%emt 00:00:06]} 34. cxb4 {[%clk 00:00:53]}
{[%emt 00:00:40]} Rxb4 {[%clk 00:14:16]} {[%emt 00:00:16]} 35. Kg2 {[%clk
00:00:33]} {[%emt 00:00:51]} Bxb2 {[%clk 00:11:06]} {[%emt 00:03:40]} 36. Rxb2
{[%clk 00:00:39]} {[%emt 00:00:24]} Bxd5+ {[%clk 00:11:32]} {[%emt 00:00:04]}
37. Nxd5 {[%clk 00:01:08]} {[%emt 00:00:01]} Rxb2 {[%clk 00:11:54]} {[%emt
00:00:07]} 38. Bf3 {[%clk 00:00:43]} {[%emt 00:00:55]} Rcc2 {[%clk 00:11:43]}
{[%emt 00:00:40]} 39. Rf1 {[%clk 00:01:11]} {[%emt 00:00:03]} e6 {[%clk
00:10:30]} {[%emt 00:01:43]} 40. Ne3 {[%clk 00:01:20]} {[%emt 00:00:22]} Rc7
{[%clk 00:10:54]} {[%emt 00:00:06]} 41. Rd1 {[%clk 00:27:27]} {[%emt 00:04:23]}
d5 {[%clk 00:38:39]} {[%emt 00:02:44]} 42. Rd4 {[%clk 00:25:15]} {[%emt
00:02:41]} Ra7 {[%clk 00:37:52]} {[%emt 00:01:18]} 43. Nd1 {[%clk 00:24:59]}
{[%emt 00:00:47]} Rba2 {[%clk 00:37:06]} {[%emt 00:01:13]} 44. Ne3 {[%clk
00:24:15]} {[%emt 00:01:16]} Kg7 {[%clk 00:36:31]} {[%emt 00:01:04]} 45. Rb4
{[%clk 00:20:27]} {[%emt 00:04:20]} R2a4 {[%clk 00:34:47]} {[%emt 00:02:14]} 46.
Rb5 {[%clk 00:10:53]} {[%emt 00:10:04]} d4 {[%clk 00:32:25]} {[%emt 00:02:51]}
47. Nd1 {[%clk 00:11:08]} {[%emt 00:00:16]} R4a5 {[%clk 00:32:30]} {[%emt
00:00:25]} 48. Rb8 {[%clk 00:09:01]} {[%emt 00:02:37]} e5 {[%clk 00:32:27]}
{[%emt 00:00:33]} 49. Rd8 {[%clk 00:08:33]} {[%emt 00:00:59]} Rb5 {[%clk
00:30:13]} {[%emt 00:02:40]} 50. Kf1 {[%clk 00:06:52]} {[%emt 00:02:14]} Rb4
{[%clk 00:26:26]} {[%emt 00:04:16]} 51. Be2 {[%clk 00:04:36]} {[%emt 00:02:47]}
e4 {[%clk 00:25:48]} {[%emt 00:01:09]} 52. Ke1 {[%clk 00:04:49]} {[%emt
00:00:16]} Kf6 {[%clk 00:21:40]} {[%emt 00:04:36]} 53. Rd5 {[%clk 00:03:20]}
{[%emt 00:02:00]} Ke6 {[%clk 00:21:52]} {[%emt 00:00:18]} 54. Rd8 {[%clk
00:03:22]} {[%emt 00:00:28]} Rd7 {[%clk 00:22:12]} {[%emt 00:00:09]} 55. Rc8
{[%clk 00:02:35]} {[%emt 00:01:17]} d3 {[%clk 00:19:22]} {[%emt 00:03:20]} 56.
Bf1 {[%clk 00:03:03]} {[%emt 00:00:02]} Rb1 {[%clk 00:19:39]} {[%emt 00:00:12]}
57. Rc3 {[%clk 00:02:16]} {[%emt 00:01:18]} Ke5 {[%clk 00:19:42]} {[%emt
00:00:28]} 58. Kd2 {[%clk 00:01:59]} {[%emt 00:00:47]} Kd4 {[%clk 00:19:22]}
{[%emt 00:00:48]} 59. Ra3 {[%clk 00:02:11]} {[%emt 00:00:20]} Rdb7 {[%clk
00:13:35]} {[%emt 00:06:16]} 60. Ra4+ {[%clk 00:01:42]} {[%emt 00:00:59]} R7b4
{[%clk 00:13:40]} {[%emt 00:00:25]} 61. Rxb4+ {[%clk 00:00:48]} {[%emt
00:01:25]} Rxb4 {[%clk 00:14:03]} {[%emt 00:00:07]} 62. Bh3 {[%clk 00:00:36]}
{[%emt 00:00:43]} Ra4 {[%clk 00:14:24]} {[%emt 00:00:09]} 63. Nc3 {[%clk
00:00:41]} {[%emt 00:00:25]} Rc4 {[%clk 00:14:44]} {[%emt 00:00:09]} 64. Nb5+
{[%clk 00:01:03]} {[%emt 00:00:09]} Kc5 {[%clk 00:14:48]} {[%emt 00:00:25]} 65.
Nc3 {[%clk 00:01:10]} {[%emt 00:00:24]} Kb4 {[%clk 00:15:01]} {[%emt 00:00:16]}
66. Nd5+ {[%clk 00:01:35]} {[%emt 00:00:06]} Kb3 {[%clk 00:15:24]} {[%emt
00:00:07]} 67. Bf1 {[%clk 00:01:28]} {[%emt 00:00:37]} Rc2+ {[%clk 00:15:35]}
{[%emt 00:00:19]} 68. Ke3 {[%clk 00:01:26]} {[%emt 00:00:33]} Rc1 {[%clk
00:14:13]} {[%emt 00:01:51]} 69. Bxd3 {[%clk 00:01:03]} {[%emt 00:00:53]} exd3
{[%clk 00:14:36]} {[%emt 00:00:07]} 70. Nf4 {[%clk 00:01:28]} {[%emt 00:00:06]}
Kc4 {[%clk 00:14:45]} {[%emt 00:00:21]} 71. Kd4+ {[%emt 00:00:11]} 0-1

[Event "18èmeFestival International d’Echecsde Rochefort"]
[Site "Rochefort, France"]
[Date "2019.02.19"]
[Round "6.2"]
[White "RIOS, Cristhian Camilo"]
[Black "VAN DEN DOEL, Erik"]
[Result "1-0"]
[TimeControl "1h30 min/40coups + 30 min +  30sec/coup"]
[WhiteTitle "IM"]
[BlackTitle "GM"]
[WhiteFideId "4403940"]
[BlackFideId "1003720"]
[WhiteElo "2482"]
[BlackElo "2611"]

1. d4 {[%clk 01:30:04]} {[%emt 00:00:55]} d5 {[%clk 01:29:03]} {[%emt
00:01:57]} 2. c4 {[%clk 01:30:14]} {[%emt 00:00:19]} c6 {[%clk 01:29:29]}
{[%emt 00:00:05]} 3. Nf3 {[%clk 01:30:37]} {[%emt 00:00:07]} Nf6 {[%clk
01:29:54]} {[%emt 00:00:05]} 4. Qc2 {[%clk 01:31:00]} {[%emt 00:00:07]} dxc4
{[%clk 01:29:43]} {[%emt 00:00:42]} 5. Qxc4 {[%clk 01:31:21]} {[%emt 00:00:08]}
Bf5 {[%clk 01:30:02]} {[%emt 00:00:11]} 6. g3 {[%clk 01:31:38]} {[%emt
00:00:13]} e6 {[%clk 01:30:26]} {[%emt 00:00:06]} 7. Bg2 {[%clk 01:32:01]}
{[%emt 00:00:06]} Be7 {[%clk 01:30:11]} {[%emt 00:00:46]} 8. O-O {[%clk
01:32:09]} {[%emt 00:00:22]} O-O {[%clk 01:30:36]} {[%emt 00:00:05]} 9. Nc3
{[%clk 01:32:16]} {[%emt 00:00:23]} Nbd7 {[%clk 01:30:57]} {[%emt 00:00:09]} 10.
Re1 {[%clk 01:31:25]} {[%emt 00:01:21]} Ne4 {[%clk 01:24:31]} {[%emt 00:06:57]}
11. Qb3 {[%clk 01:28:56]} {[%emt 00:02:58]} Qb6 {[%clk 01:23:58]} {[%emt
00:01:03]} 12. Nh4 {[%clk 01:29:14]} {[%emt 00:00:11]} Bxh4 {[%clk 01:21:17]}
{[%emt 00:03:11]} 13. gxh4 {[%clk 01:27:37]} {[%emt 00:02:07]} Nxc3 {[%clk
01:01:39]} {[%emt 00:20:09]} 14. bxc3 {[%clk 01:25:32]} {[%emt 00:02:35]} Nf6
{[%clk 00:55:28]} {[%emt 00:06:41]} 15. e4 {[%clk 01:16:23]} {[%emt 00:09:38]}
Bg6 {[%clk 00:52:36]} {[%emt 00:03:23]} 16. Rb1 {[%clk 01:16:46]} {[%emt
00:00:07]} Qa5 {[%clk 00:50:26]} {[%emt 00:02:39]} 17. Qb4 {[%clk 01:14:00]}
{[%emt 00:03:16]} Qxb4 {[%clk 00:36:27]} {[%emt 00:14:30]} 18. Rxb4 {[%clk
01:11:12]} {[%emt 00:03:17]} b6 {[%clk 00:36:52]} {[%emt 00:00:05]} 19. c4
{[%clk 01:03:41]} {[%emt 00:08:01]} Nd7 {[%clk 00:35:03]} {[%emt 00:02:19]} 20.
e5 {[%clk 00:59:03]} {[%emt 00:05:08]} c5 {[%clk 00:30:26]} {[%emt 00:05:08]}
21. Bxa8 {[%clk 00:54:15]} {[%emt 00:05:17]} Rxa8 {[%clk 00:30:51]} {[%emt
00:00:05]} 22. dxc5 {[%clk 00:52:00]} {[%emt 00:02:45]} Nxc5 {[%clk 00:30:43]}
{[%emt 00:00:38]} 23. Rd1 {[%clk 00:52:16]} {[%emt 00:00:14]} Nd3 {[%clk
00:24:47]} {[%emt 00:06:27]} 24. Rb3 {[%clk 00:40:19]} {[%emt 00:12:27]} Nxe5
{[%clk 00:25:05]} {[%emt 00:00:12]} 25. Rc3 {[%clk 00:40:43]} {[%emt 00:00:06]}
Kf8 {[%clk 00:16:59]} {[%emt 00:08:37]} 26. c5 {[%clk 00:35:41]} {[%emt
00:05:31]} b5 {[%clk 00:08:06]} {[%emt 00:09:23]} 27. c6 {[%clk 00:27:23]}
{[%emt 00:08:47]} Rc8 {[%clk 00:07:55]} {[%emt 00:00:41]} 28. c7 {[%clk
00:22:08]} {[%emt 00:05:45]} Ke8 {[%clk 00:07:11]} {[%emt 00:01:15]} 29. Rc5
{[%clk 00:19:39]} {[%emt 00:02:58]} Nd3 {[%clk 00:06:51]} {[%emt 00:00:50]} 30.
Rxb5 {[%clk 00:18:59]} {[%emt 00:01:10]} Rxc7 {[%clk 00:07:09]} {[%emt
00:00:13]} 31. Be3 {[%clk 00:19:10]} {[%emt 00:00:18]} e5 {[%clk 00:03:33]}
{[%emt 00:04:06]} 32. Ra5 {[%clk 00:19:14]} {[%emt 00:00:25]} Rb7 {[%clk
00:03:19]} {[%emt 00:00:45]} 33. Rxa7 {[%clk 00:18:24]} {[%emt 00:01:20]} Rb4
{[%clk 00:03:43]} {[%emt 00:00:06]} 34. a4 {[%clk 00:14:37]} {[%emt 00:04:18]}
e4 {[%clk 00:03:04]} {[%emt 00:01:09]} 35. a5 {[%clk 00:14:28]} {[%emt
00:00:39]} f5 {[%clk 00:03:27]} {[%emt 00:00:07]} 36. a6 {[%clk 00:10:39]}
{[%emt 00:04:19]} f4 {[%clk 00:03:51]} {[%emt 00:00:06]} 37. Rb7 {[%clk
00:09:27]} {[%emt 00:01:42]} Ra4 {[%clk 00:02:50]} {[%emt 00:01:31]} 38. a7
{[%clk 00:09:50]} {[%emt 00:00:07]} fxe3 {[%clk 00:01:49]} {[%emt 00:01:31]} 39.
fxe3 {[%clk 00:10:05]} {[%emt 00:00:14]} Bh5 {[%clk 00:01:59]} {[%emt
00:00:21]} 40. Rdb1 {[%clk 00:09:42]} {[%emt 00:00:53]} Ne5 {[%clk 00:00:47]}
{[%emt 00:01:42]} 41. Rb8+ {[%clk 00:07:06]} {[%emt 00:03:05]} Kf7 {[%clk
00:00:56]} {[%emt 00:00:21]} 42. a8=Q {[%clk 00:07:28]} {[%emt 00:00:07]} Rxa8
{[%clk 00:01:23]} {[%emt 00:00:04]} 43. Rxa8 {[%clk 00:07:50]} {[%emt
00:00:08]} Nf3+ {[%clk 00:01:50]} {[%emt 00:00:03]} 44. Kf2 {[%clk 00:08:11]}
{[%emt 00:00:09]} Nxh4 {[%clk 00:02:15]} {[%emt 00:00:05]} 45. Kg3 {[%clk
00:07:49]} {[%emt 00:00:52]} 1-0



[ePGN "0.1;DGT LiveChess/2.2.3"]

[Event "18èmeFestival International d’Echecsde Rochefort"]
[Site "Rochefort, France"]
[Date "2019.02.20"]
[Round "7.2"]
[White "SOSA, Tomas"]
[Black "GASCON DEL NOGAL, Jose Rafael"]
[Result "1/2-1/2"]
[TimeControl "1h30 min/40coups + 30 min +  30sec/coup"]
[WhiteTitle "IM"]
[BlackTitle "GM"]
[WhiteFideId "121576"]
[BlackFideId "3902463"]
[WhiteElo "2502"]
[BlackElo "2457"]

1. e4 {[%clk 01:24:39]} {[%emt 00:06:09]} e5 {[%clk 01:30:17]} {[%emt
00:00:55]} 2. Nf3 {[%clk 01:24:52]} {[%emt 00:00:17]} Nc6 {[%clk 01:30:42]}
{[%emt 00:00:05]} 3. Bc4 {[%clk 01:25:17]} {[%emt 00:00:05]} Nf6 {[%clk
01:31:07]} {[%emt 00:00:05]} 4. d3 {[%clk 01:25:42]} {[%emt 00:00:05]} Bc5
{[%clk 01:30:45]} {[%emt 00:00:51]} 5. Nbd2 {[%clk 01:23:58]} {[%emt 00:02:14]}
O-O {[%clk 01:30:38]} {[%emt 00:00:37]} 6. O-O {[%clk 01:24:13]} {[%emt
00:00:15]} d6 {[%clk 01:30:13]} {[%emt 00:00:55]} 7. c3 {[%clk 01:24:31]}
{[%emt 00:00:13]} a5 {[%clk 01:30:39]} {[%emt 00:00:05]} 8. Re1 {[%clk
01:22:37]} {[%emt 00:02:23]} a4 {[%clk 01:30:28]} {[%emt 00:00:41]} 9. Nf1
{[%clk 01:13:20]} {[%emt 00:09:46]} h6 {[%clk 01:06:00]} {[%emt 00:24:58]} 10.
Ng3 {[%clk 01:08:35]} {[%emt 00:05:15]} Ne7 {[%clk 01:05:13]} {[%emt 00:01:16]}
11. a3 {[%clk 00:59:14]} {[%emt 00:09:53]} Be6 {[%clk 01:04:45]} {[%emt
00:00:58]} 12. Bxe6 {[%clk 00:50:44]} {[%emt 00:09:00]} fxe6 {[%clk 01:05:11]}
{[%emt 00:00:03]} 13. Be3 {[%clk 00:51:06]} {[%emt 00:00:08]} Bxe3 {[%clk
01:05:12]} {[%emt 00:00:29]} 14. fxe3 {[%clk 00:48:50]} {[%emt 00:02:47]}
1/2-1/2

[Event "18èmeFestival International d’Echecsde Rochefort"]
[Site "Rochefort, France"]
[Date "2019.02.20"]
[Round "7.1"]
[White "ZENG, Chongsheng"]
[Black "RIOS, Cristhian Camilo"]
[Result "1/2-1/2"]
[TimeControl "1h30 min/40coups + 30 min +  30sec/coup"]
[WhiteTitle "GM"]
[BlackTitle "IM"]
[WhiteFideId "8603847"]
[BlackFideId "4403940"]
[WhiteElo "2544"]
[BlackElo "2482"]

1. e4 {[%clk 01:29:24]} {[%emt 00:01:35]} c5 {[%clk 01:26:18]} {[%emt
00:04:43]} 2. Nf3 {[%clk 01:29:40]} {[%emt 00:00:13]} Nc6 {[%clk 01:26:23]}
{[%emt 00:00:25]} 3. d4 {[%clk 01:29:50]} {[%emt 00:00:20]} cxd4 {[%clk
01:26:40]} {[%emt 00:00:12]} 4. Nxd4 {[%clk 01:30:16]} {[%emt 00:00:05]} Nf6
{[%clk 01:26:35]} {[%emt 00:00:35]} 5. Nc3 {[%clk 01:30:40]} {[%emt 00:00:06]}
e5 {[%clk 01:26:39]} {[%emt 00:00:27]} 6. Ndb5 {[%clk 01:31:03]} {[%emt
00:00:06]} d6 {[%clk 01:26:56]} {[%emt 00:00:14]} 7. Bg5 {[%clk 01:31:28]}
{[%emt 00:00:05]} a6 {[%clk 01:27:15]} {[%emt 00:00:12]} 8. Na3 {[%clk
01:31:53]} {[%emt 00:00:05]} b5 {[%clk 01:27:34]} {[%emt 00:00:12]} 9. Bxf6
{[%clk 01:32:19]} {[%emt 00:00:04]} gxf6 {[%clk 01:27:52]} {[%emt 00:00:11]} 10.
Nd5 {[%clk 01:32:39]} {[%emt 00:00:10]} Bg7 {[%clk 01:26:04]} {[%emt 00:02:17]}
11. c3 {[%clk 01:33:04]} {[%emt 00:00:06]} f5 {[%clk 01:24:08]} {[%emt
00:02:25]} 12. exf5 {[%clk 01:33:31]} {[%emt 00:00:04]} Bxf5 {[%clk 01:24:25]}
{[%emt 00:00:12]} 13. Nc2 {[%clk 01:33:58]} {[%emt 00:00:03]} Be6 {[%clk
01:23:19]} {[%emt 00:01:36]} 14. Nce3 {[%clk 01:34:01]} {[%emt 00:00:28]} O-O
{[%clk 01:18:53]} {[%emt 00:04:56]} 15. Bd3 {[%clk 01:34:20]} {[%emt 00:00:11]}
f5 {[%clk 01:17:33]} {[%emt 00:01:50]} 16. Qh5 {[%clk 01:34:41]} {[%emt
00:00:09]} Qd7 {[%clk 01:00:48]} {[%emt 00:17:16]} 17. Nb6 {[%clk 01:32:54]}
{[%emt 00:02:16]} Qe8 {[%clk 01:00:10]} {[%emt 00:01:08]} 18. Qxe8 {[%clk
01:28:32]} {[%emt 00:04:52]} Raxe8 {[%clk 01:00:27]} {[%emt 00:00:12]} 19. a4
{[%clk 01:28:40]} {[%emt 00:00:23]} e4 {[%clk 00:52:56]} {[%emt 00:08:01]} 20.
Be2 {[%clk 01:24:35]} {[%emt 00:04:35]} f4 {[%clk 00:44:34]} {[%emt 00:08:53]}
21. axb5 {[%clk 01:16:42]} {[%emt 00:08:24]} Ne5 {[%clk 00:36:25]} {[%emt
00:08:38]} 22. Ned5 {[%clk 01:10:05]} {[%emt 00:07:07]} Bxd5 {[%clk 00:18:58]}
{[%emt 00:17:57]} 23. Nxd5 {[%clk 01:09:06]} {[%emt 00:01:29]} axb5 {[%clk
00:14:26]} {[%emt 00:05:02]} 24. O-O-O {[%clk 00:58:36]} {[%emt 00:10:59]} Rb8
{[%clk 00:14:08]} {[%emt 00:00:48]} 25. Rhe1 {[%clk 00:56:17]} {[%emt
00:02:49]} f3 {[%clk 00:13:33]} {[%emt 00:01:05]} 26. gxf3 {[%clk 00:56:34]}
{[%emt 00:00:14]} exf3 {[%clk 00:13:57]} {[%emt 00:00:06]} 27. Bd3 {[%clk
00:56:03]} {[%emt 00:01:01]} Kh8 {[%clk 00:14:22]} {[%emt 00:00:05]} 28. Re4
{[%clk 00:54:54]} {[%emt 00:01:38]} Rb7 {[%clk 00:14:46]} {[%emt 00:00:06]} 29.
Kc2 {[%clk 00:53:54]} {[%emt 00:01:30]} Nxd3 {[%clk 00:14:05]} {[%emt
00:01:11]} 30. Rxd3 {[%clk 00:52:16]} {[%emt 00:02:08]} Be5 {[%clk 00:14:18]}
{[%emt 00:00:17]} 31. h3 {[%clk 00:51:45]} {[%emt 00:01:01]} Rg7 {[%clk
00:11:54]} {[%emt 00:02:54]} 32. Ree3 {[%clk 00:52:14]} {[%emt 00:00:02]} Rg2
{[%clk 00:11:23]} {[%emt 00:00:59]} 33. Rxf3 {[%clk 00:49:50]} {[%emt
00:02:55]} Rxf2+ {[%clk 00:11:44]} {[%emt 00:00:08]} 34. Rxf2 {[%clk 00:50:18]}
{[%emt 00:00:03]} Rxf2+ {[%clk 00:12:04]} {[%emt 00:00:10]} 35. Rd2 {[%clk
00:47:16]} {[%emt 00:03:31]} Rf3 {[%clk 00:12:28]} {[%emt 00:00:06]} 36. Nc7
{[%clk 00:46:13]} {[%emt 00:01:34]} Rxh3 {[%clk 00:12:51]} {[%emt 00:00:06]} 37.
Nxb5 {[%clk 00:46:40]} {[%emt 00:00:03]} Rh2 {[%clk 00:12:13]} {[%emt
00:01:08]} 38. Rxh2 {[%clk 00:41:40]} {[%emt 00:05:31]} Bxh2 {[%clk 00:12:36]}
{[%emt 00:00:06]} 39. Kd3 {[%clk 00:42:05]} {[%emt 00:00:06]} Kg7 {[%clk
00:13:00]} {[%emt 00:00:06]} 40. Ke4 {[%clk 00:42:23]} {[%emt 00:00:12]} Kf6
{[%clk 00:12:36]} {[%emt 00:00:53]} 41. Nd4 {[%clk 00:39:41]} {[%emt 00:03:12]}
h5 {[%clk 00:07:05]} {[%emt 00:06:02]} 42. b4 {[%clk 00:39:54]} {[%emt
00:00:18]} Be5 {[%clk 00:06:39]} {[%emt 00:00:56]} 43. b5 {[%clk 00:36:15]}
{[%emt 00:04:09]} Bxd4 {[%clk 00:05:13]} {[%emt 00:01:56]} 44. cxd4 {[%clk
00:34:45]} {[%emt 00:02:00]} Ke6 {[%clk 00:05:35]} {[%emt 00:00:07]} 45. Kf4
{[%clk 00:35:12]} {[%emt 00:00:03]} Kd7 {[%clk 00:06:01]} {[%emt 00:00:05]} 46.
Kg5 {[%clk 00:35:35]} {[%emt 00:00:06]} Kc7 {[%clk 00:06:25]} {[%emt 00:00:06]}
47. Kxh5 {[%clk 00:36:02]} {[%emt 00:00:03]} Kb6 {[%clk 00:06:49]} {[%emt
00:00:06]} 48. Kg5 {[%clk 00:36:22]} {[%emt 00:00:10]} Kxb5 {[%clk 00:07:13]}
{[%emt 00:00:07]} 49. Kf5 {[%clk 00:36:45]} {[%emt 00:00:07]} Kc4 {[%clk
00:07:17]} {[%emt 00:00:26]} 50. Ke6 {[%clk 00:37:07]} {[%emt 00:00:08]}
1/2-1/2